fUSD/lending_fUSD_20241202
["ID","MTS","AMOUNT","RATE_DAILY","PERIOD"]
[343952701,1733131832369,-300.0,7.31e-05,2]
[343952703,1733131832378,-150.0,7.31e-05,2]
[343952704,1733131832388,-150.0,7.31e-05,2]
[343952705,1733131832398,-150.0,7.31e-05,2]
[343952706,1733131832407,-363.99,7.31e-05,2]
[343952707,1733131832416,-289.78,7.31e-05,2]
[343952708,1733131832426,-150.0,7.31e-05,2]
[343952709,1733131832436,-363.99,7.31e-05,2]
[343952710,1733131832446,-150.0,7.31e-05,2]
[343952711,1733131832456,-150.0,7.31e-05,2]
[343952712,1733131832469,-96.31543442,7.31e-05,2]
[343952714,1733131832509,-267.67456558,7.31e-05,2]
[343952715,1733131832519,-150.0,7.31e-05,2]
[343952716,1733131832530,-288.22543442,7.31e-05,2]
[343952717,1733131832586,-146.73456558,7.31e-05,2]
[343952718,1733131832597,-300.0,7.31e-05,2]
[343952719,1733131832606,-150.0,7.31e-05,2]
[343952720,1733131832615,-363.99,7.31e-05,2]
[343952721,1733131832625,-434.96,7.31e-05,2]
[343952722,1733131832635,-363.99,7.31e-05,2]
[343952723,1733131832645,-329.26,7.31e-05,2]
[343952724,1733131832654,-191.69,7.31e-05,2]
[343952725,1733131832664,-434.96,7.31e-05,2]
[343952726,1733131832674,-150.0,7.31e-05,2]
[343952727,1733131832691,-150.0,7.31e-05,2]
[343952728,1733131832701,-429.44,7.31e-05,2]
[343952729,1733131832712,-150.0,7.31e-05,2]
[343952730,1733131832721,-363.99,7.31e-05,2]
[343952731,1733131832731,-150.0,7.324e-05,2]
[343952732,1733131832741,-150.0,7.33e-05,2]
[343952733,1733131832751,-171.3360597,7.35e-05,2]
[343952734,1733131832761,-150.0,7.381e-05,2]
[343952735,1733131832771,-486.22,7.397e-05,14]
[343952736,1733131832781,-2500.0,7.4e-05,2]
[343952737,1733131832790,-1000.0,7.4e-05,2]
[343952738,1733131832800,-150.0,7.406e-05,2]
[343952739,1733131832809,-48.18247535,7.413e-05,2]
[343952740,1733131832870,-101.81752465,7.413e-05,2]
[343952741,1733131832879,-500.0,7.44e-05,2]
[343952742,1733131832889,-150.0,7.449e-05,2]
[343952743,1733131832898,-1000.0,7.463e-05,2]
[343952744,1733131832908,-1000.0,7.463e-05,2]
[343952745,1733131832918,-1000.0,7.463e-05,2]
[343952746,1733131832927,-1000.0,7.463e-05,2]
[343952747,1733131832937,-1000.0,7.463e-05,2]
[343952748,1733131832947,-1000.0,7.463e-05,2]
[343952749,1733131832957,-1000.0,7.463e-05,2]
[343952750,1733131832969,-1000.0,7.463e-05,2]
[343952751,1733131832978,-1000.0,7.463e-05,2]
[343952752,1733131832987,-1000.0,7.463e-05,2]
[343952753,1733131832997,-1000.0,7.463e-05,2]
[343952754,1733131833007,-1000.0,7.463e-05,2]
[343952755,1733131833017,-1000.0,7.463e-05,2]
[343952756,1733131833027,-1000.0,7.463e-05,2]
[343952757,1733131833036,-1000.0,7.463e-05,2]
[343952758,1733131833046,-1000.0,7.463e-05,2]
[343952759,1733131833056,-957.8089,7.463e-05,2]
[343952760,1733131833066,-150.0,7.47e-05,2]
[343952761,1733131833075,-150.0,7.472e-05,2]
[343952762,1733131833086,-349.09329814,7.473e-05,2]
[343952763,1733131833096,-150.0,7.477e-05,2]
[343952764,1733131833106,-150.0,7.479e-05,2]
[343952765,1733131833116,-150.0,7.496e-05,2]
[343952766,1733131833125,-429.96222152,7.499e-05,2]
[343952767,1733131833135,-150.0,7.499e-05,2]
[343952768,1733131833146,-150.0,7.499e-05,2]
[343952769,1733131833156,-150.0,7.499e-05,2]
[343952770,1733131833167,-150.0,7.499e-05,2]
[343952771,1733131833177,-150.0,7.499e-05,2]
[343952772,1733131833187,-150.0,7.499e-05,2]
[343952773,1733131833196,-150.0,7.499e-05,2]
[343952774,1733131833206,-150.0,7.499e-05,2]
[343952775,1733131833221,-3099.0,7.5e-05,2]
[343952776,1733131833231,-368.10734749,7.5e-05,2]
[343952777,1733131834523,-6601.34708073,7.5e-05,2]
[343952778,1733131834535,-2134.74678327,7.5e-05,2]
[343952779,1733131834547,-6157.00398846,7.5e-05,2]
[343952780,1733131834560,-3446.21271739,7.5e-05,2]
[343952786,1733131838843,-10005.16288997,7.226e-05,2]
[343952787,1733131838855,-723.88,7.226e-05,2]
[343952788,1733131838866,-5301.15642171,7.226e-05,2]
[343952789,1733131838878,-3787.24814043,7.226e-05,2]
[343952790,1733131838983,-934.8349643,7.226e-05,2]
[343952798,1733131840577,-23120.83169007,7.226e-05,2]
[343952799,1733131840590,-27923.93499671,7.226e-05,2]
[343952800,1733131840601,-45977.75573865,7.226e-05,2]
[343952810,1733131843123,-9648.29289785,7.226e-05,2]
[343952811,1733131843164,-3618.90790994,7.226e-05,2]
[343952812,1733131843175,-1089.60593022,7.226e-05,2]
[343952813,1733131843187,-2410.231585,7.226e-05,2]
[343952815,1733131843275,-40021.70005,7.226e-05,2]
[343952816,1733131843312,-284.62022521,7.226e-05,2]
[343952863,1733131846470,-1453.84149844,7.226e-05,2]
[343952864,1733131846565,-1583.65255176,7.226e-05,2]
[343952865,1733131846578,-496.38991799,7.226e-05,2]
[343952866,1733131846589,-871.57901469,7.226e-05,2]
[343952867,1733131846657,-800.0,7.226e-05,2]
[343952868,1733131846705,-582.1853075,7.226e-05,2]
[343952869,1733131846716,-2272.7,7.226e-05,2]
[343952870,1733131846730,-672.80146,7.226e-05,2]
[343952871,1733131846741,-315.8932275,7.226e-05,2]
[343952872,1733131846752,-506.361505,7.226e-05,2]
[343952873,1733131846858,-9556.3746,7.226e-05,2]
[343952875,1733132262102,252.06,6.942e-05,2]
[343952876,1733132500471,1002.0,0.0002,120]
[343952877,1733132682147,2500.0,7.126e-05,2]
[343952878,1733132788231,2500.0,7.126e-05,2]
[343952880,1733132869727,-172.39,7.417e-05,2]
[343952881,1733132869750,-150.0,7.425e-05,2]
[343952882,1733132869777,-3253.823,7.441e-05,2]
[343952883,1733132869801,-176.914,7.441e-05,2]
[343952884,1733132869825,-500.0,7.463e-05,2]
[343952885,1733132869847,-500.0,7.463e-05,2]
[343952886,1733132869871,-500.0,7.463e-05,2]
[343952887,1733132869893,-500.0,7.463e-05,2]
[343952888,1733132869915,-500.0,7.463e-05,2]
[343952889,1733132869937,-435.5945,7.463e-05,2]
[343952890,1733132869960,-500.0,7.473e-05,2]
[343952891,1733132869983,-503.64091238,7.473e-05,2]
[343952892,1733132870004,-434.96,7.48e-05,2]
[343952893,1733132870029,-767.69,7.48e-05,2]
[343952894,1733132870054,-151.53,7.48e-05,2]
[343952895,1733132870076,-363.99,7.48e-05,2]
[343952896,1733132870098,-150.0,7.48e-05,2]
[343952897,1733132870121,-150.0,7.498e-05,2]
[343952898,1733132870144,-358.30185126,7.499e-05,2]
[343952899,1733132870168,-150.0,7.499e-05,2]
[343952900,1733132870191,-150.0,7.499e-05,2]
[343952901,1733132870215,-150.0,7.499e-05,2]
[343952902,1733132870237,-150.0,7.499e-05,2]
[343952903,1733132870260,-150.0,7.499e-05,2]
[343952904,1733132870285,-150.0,7.499e-05,2]
[343952905,1733132870308,-150.0,7.499e-05,2]
[343952906,1733132870329,-150.0,7.499e-05,2]
[343952907,1733132870351,-12491.33480132,7.499e-05,2]
[343952908,1733132870373,-176.89544316,7.499e-05,2]
[343952909,1733132870394,-195.53763735,7.499e-05,2]
[343952910,1733132870415,-2260.01038306,7.5e-05,2]
[343952911,1733132878500,163.68,7.04e-05,2]
[343952914,1733132953526,700.0,6.8e-05,2]
[343952915,1733132956289,1400.0,6.9e-05,2]
[343952916,1733132957811,2100.0,7e-05,2]
[343952917,1733132976416,-2800.0,7.3e-05,2]
[343952918,1733132976439,-2500.0,7.4e-05,2]
[343952919,1733132976462,-3500.0,7.4e-05,2]
[343952920,1733132976485,-2698.0,7.425e-05,2]
[343952921,1733132976508,-298.58487605,7.499e-05,2]
[343952922,1733132976531,-150.0,7.499e-05,2]
[343952923,1733132976553,-300.0,7.499e-05,2]
[343952924,1733132976576,-532.98961694,7.5e-05,2]
[343952925,1733132976603,-274603.30614679,7.5e-05,2]
[343952936,1733133032303,-248.82073005,7.499e-05,2]
[343952937,1733133032314,-2555.0,7.5e-05,2]
[343952938,1733133032324,-183060.25644476,7.5e-05,2]
[343952939,1733133032376,-1912.8934503,7.5e-05,2]
[343952940,1733133032521,-595.3,7.5e-05,2]
[343952941,1733133032537,-2134.10537336,7.5e-05,2]
[343952942,1733133032658,-234923.041,7.5e-05,2]
[343952970,1733133038841,-248.82073004,7.499e-05,2]
[343952971,1733133038850,-405.74922168,7.5e-05,2]
[343952972,1733133038861,-1897.25077832,7.5e-05,2]
[343952973,1733133038871,-17188.17204406,7.5e-05,2]
[343952974,1733133038882,-92312.0004,7.5e-05,2]
[343952975,1733133038923,-1456.98265862,7.5e-05,2]
[343952976,1733133038934,-273.790321,7.5e-05,2]
[343952977,1733133038945,-21890.19498903,7.5e-05,2]
[343952978,1733133038969,-1305.89991283,7.5e-05,2]
[343952979,1733133039034,-921.5,7.5e-05,2]
[343952981,1733133040249,-19701.21357929,7.5e-05,2]
[343952982,1733133040281,-550.988475,7.5e-05,2]
[343952983,1733133040328,-287297.67985861,7.5e-05,2]
[343952984,1733133040415,-379.4348,7.5e-05,2]
[343952985,1733133040429,-455894.47616207,7.5e-05,2]
[343952986,1733133040442,-86624.02006057,7.5e-05,2]
[343952987,1733133040456,-44943.79759901,7.5e-05,2]
[343952988,1733133040469,-148008.5367247,7.5e-05,2]
[343952989,1733133040480,-363.99,7.5e-05,2]
[343952990,1733133040492,-150.0,7.5e-05,2]
[343952991,1733133040503,-434.96,7.5e-05,2]
[343952992,1733133040515,-150.0,7.5e-05,2]
[343952993,1733133040525,-244.24,7.5e-05,2]
[343952994,1733133040536,-1010.39,7.5e-05,2]
[343952995,1733133040548,-767.69,7.5e-05,2]
[343952996,1733133040559,-362.86,7.5e-05,2]
[343952997,1733133040570,-700.0,7.5e-05,2]
[343952998,1733133040582,-150.0,7.534e-05,2]
[343952999,1733133040593,-700.0,7.6e-05,2]
[343953000,1733133040604,-150.0,7.69e-05,2]
[343953001,1733133040616,-150.0,7.69e-05,2]
[343953002,1733133040627,-434.96,7.69e-05,2]
[343953003,1733133040639,-150.0,7.69e-05,2]
[343953004,1733133040650,-764.41,7.69e-05,2]
[343953006,1733133040662,-726.85,7.69e-05,2]
[343953007,1733133040675,-300.0,7.69e-05,2]
[343953008,1733133040687,-187.0,7.699e-05,2]
[343953009,1733133040699,-500.0,7.699e-05,2]
[343953010,1733133040710,-60044.1132753,7.7e-05,2]
[343953011,1733133040839,-4818.864916,7.7e-05,2]
[343953030,1733133043922,-7707.75005,7.7e-05,2]
[343953032,1733133043997,-2871.96097078,7.7e-05,2]
[343953033,1733133044011,-4717.24502998,7.7e-05,2]
[343953034,1733133044086,-331.88744,7.5e-05,2]
[343953035,1733133044146,-1154.56496913,7.5e-05,2]
[343953036,1733133044159,-589.54759087,7.5e-05,2]
[343953037,1733133044173,-22610.45240913,7.7e-05,2]
[343953038,1733133044212,-171715.2298394,7.7e-05,2]
[343953039,1733133044224,-2318.20001,7.7e-05,2]
[343953047,1733133047064,-500.0,7.7e-05,2]
[343953048,1733133047076,-1430.10796978,7.7e-05,2]
[343953049,1733133047144,-2350.44894,7.7e-05,2]
[343953050,1733133047156,-414.55272046,7.7e-05,2]
[343953051,1733133047238,-584.4666125,7.7e-05,2]
[343953052,1733133047342,-435.295,7.7e-05,2]
[343953053,1733133047376,-199.05658404,7.699e-05,2]
[343953054,1733133047385,-681.53255979,7.7e-05,2]
[343953055,1733133113430,500.0,7e-05,2]
[343953056,1733133114015,500.0,7e-05,2]
[343953057,1733133115286,500.0,7e-05,2]
[343953058,1733133116181,500.0,7e-05,2]
[343953059,1733133116852,500.0,7e-05,2]
[343953060,1733133117595,500.0,7e-05,2]
[343953061,1733133118313,500.0,7e-05,2]
[343953062,1733133121176,500.0,7e-05,2]
[343953063,1733133121743,500.0,7e-05,2]
[343953064,1733133122529,500.0,7e-05,2]
[343953065,1733133123687,500.0,7e-05,2]
[343953066,1733133124236,500.0,7e-05,2]
[343953067,1733133124884,500.0,7e-05,2]
[343953068,1733133126415,500.0,7e-05,2]
[343953069,1733133126631,500.0,7e-05,2]
[343953070,1733133127360,500.0,7e-05,2]
[343953071,1733133128135,500.0,7e-05,2]
[343953072,1733133128941,500.0,7e-05,2]
[343953073,1733133129648,500.0,7e-05,2]
[343953074,1733133131346,500.0,7e-05,2]
[343953075,1733133132012,500.0,7e-05,2]
[343953076,1733133132706,500.0,7e-05,2]
[343953077,1733133133816,500.0,7e-05,2]
[343953078,1733133134571,500.0,7e-05,2]
[343953079,1733133135055,500.0,7e-05,2]
[343953080,1733133135778,500.0,7e-05,2]
[343953081,1733133140687,500.0,7e-05,2]
[343953082,1733133141572,500.0,7e-05,2]
[343953083,1733133142182,500.0,7e-05,2]
[343953084,1733133142412,500.0,7e-05,2]
[343953085,1733133143177,500.0,7e-05,2]
[343953086,1733133144204,500.0,7e-05,2]
[343953087,1733133144334,1000.0,7.1e-05,2]
[343953088,1733133144961,500.0,7e-05,2]
[343953089,1733133146123,500.0,7e-05,2]
[343953090,1733133146704,500.0,7e-05,2]
[343953091,1733133147229,500.0,7e-05,2]
[343953092,1733133149154,500.0,7e-05,2]
[343953093,1733133149634,500.0,7e-05,2]
[343953094,1733133150216,500.0,7e-05,2]
[343953095,1733133151082,500.0,7e-05,2]
[343953096,1733133151484,500.0,7e-05,2]
[343953097,1733133152253,500.0,7e-05,2]
[343953098,1733133153008,500.0,7e-05,2]
[343953099,1733133153286,300.0,6.992e-05,2]
[343953100,1733133153791,500.0,7e-05,2]
[343953101,1733133154630,500.0,7e-05,2]
[343953102,1733133155765,500.0,7e-05,2]
[343953103,1733133156261,500.0,7e-05,2]
[343953104,1733133156898,500.0,7e-05,2]
[343953105,1733133157744,504.64,7e-05,2]
[343953106,1733133158090,500.0,7e-05,2]
[343953107,1733133159848,500.0,7e-05,2]
[343953108,1733133160627,500.0,7e-05,2]
[343953109,1733133161354,500.0,7e-05,2]
[343953110,1733133161881,500.0,7e-05,2]
[343953111,1733133162435,500.0,7e-05,2]
[343953112,1733133162800,500.0,7e-05,2]
[343953113,1733133163639,500.0,7e-05,2]
[343953114,1733133164780,500.0,7e-05,2]
[343953115,1733133165501,500.0,7e-05,2]
[343953116,1733133166253,500.0,7e-05,2]
[343953117,1733133166980,500.0,7e-05,2]
[343953118,1733133167718,500.0,7e-05,2]
[343953119,1733133168752,500.0,7e-05,2]
[343953120,1733133169481,500.0,7e-05,2]
[343953121,1733133171110,500.0,7e-05,2]
[343953122,1733133171739,500.0,7e-05,2]
[343953123,1733133172847,500.0,7e-05,2]
[343953124,1733133173378,500.0,7e-05,2]
[343953125,1733133174013,500.0,7e-05,2]
[343953126,1733133174623,500.0,7e-05,2]
[343953127,1733133175369,500.0,7e-05,2]
[343953128,1733133176149,500.0,7e-05,2]
[343953129,1733133178373,500.0,7e-05,2]
[343953130,1733133179001,500.0,7e-05,2]
[343953131,1733133179514,500.0,7e-05,2]
[343953132,1733133180163,500.0,7e-05,2]
[343953133,1733133181856,500.0,7e-05,2]
[343953134,1733133182577,500.0,7e-05,2]
[343953135,1733133183039,500.0,7e-05,2]
[343953136,1733133183811,500.0,7e-05,2]
[343953137,1733133184226,500.0,7e-05,2]
[343953138,1733133184592,500.0,7e-05,2]
[343953139,1733133185634,500.0,7e-05,2]
[343953140,1733133186094,500.0,7e-05,2]
[343953141,1733133187124,500.0,7e-05,2]
[343953142,1733133187679,500.0,7e-05,2]
[343953143,1733133188362,500.0,7e-05,2]
[343953144,1733133189171,500.0,7e-05,2]
[343953145,1733133189911,500.0,7e-05,2]
[343953146,1733133191162,500.0,7e-05,2]
[343953147,1733133192745,500.0,7e-05,2]
[343953148,1733133193667,500.0,7e-05,2]
[343953149,1733133194148,500.0,7e-05,2]
[343953150,1733133194855,500.0,7e-05,2]
[343953151,1733133195319,500.0,7e-05,2]
[343953152,1733133196086,500.0,7e-05,2]
[343953153,1733133197071,500.0,7e-05,2]
[343953154,1733133197598,370.11,7e-05,2]
[343953155,1733133223736,500.0,7e-05,2]
[343953156,1733133225527,500.0,7e-05,2]
[343953157,1733133226012,500.0,7e-05,2]
[343953158,1733133238685,4707.74,6.941e-05,2]
[343953159,1733133293352,165.17,6.911e-05,2]
[343953160,1733133313262,383.02,6.922e-05,2]
[343953161,1733133367250,1500.0,6.916e-05,2]
[343953162,1733133371301,-500.0,7.2e-05,2]
[343953163,1733133431127,2000.0,6.884e-05,2]
[343953164,1733133435052,993.35,6.884e-05,2]
[343953165,1733133459843,250.0,6.891e-05,2]
[343953167,1733133461058,1607.74,6.884e-05,2]
[343953168,1733133485858,160.64,5.518e-05,2]
[343953169,1733133495410,729.96,6.898e-05,2]
[343953171,1733133559414,200.0,6.884e-05,2]
[343953172,1733133564881,667.4,6.884e-05,2]
[343953173,1733133568213,1705.03,6.872e-05,2]
[343953174,1733133630782,10000.0,0.000121,29]
[343953175,1733133652941,707.8,6.845e-05,2]
[343953177,1733133708632,10000.0,0.0001211,29]
[343953178,1733133719813,10000.0,0.00012109,29]
[343953179,1733133726133,202.06,6.805e-05,2]
[343953180,1733133788964,300.0,6.796e-05,2]
[343953181,1733133792577,3044.67,6.804e-05,2]
[343953182,1733133832412,1451.99,6.796e-05,2]
[343953183,1733133866834,770.79,6.81e-05,2]
[343953184,1733133891799,1017.95,7.162e-05,2]
[343953185,1733134031116,1500.0,6.845e-05,2]
[343953186,1733134035856,500.0,7e-05,2]
[343953187,1733134037728,1000.0,7.1e-05,2]
[343953188,1733134069984,165.17,6.786e-05,2]
[343953189,1733134083010,2000.0,6.786e-05,2]
[343953190,1733134097643,160.64,5.426e-05,2]
[343953191,1733134136950,250.0,6.804e-05,2]
[343953192,1733134180701,335.13,6.808e-05,2]
[343953193,1733134197322,-1500.0,7.2e-05,2]
[343953194,1733134197346,-2100.0,7.3e-05,2]
[343953195,1733134197369,-172.39,7.393e-05,2]
[343953196,1733134197392,-2600.0,7.4e-05,2]
[343953197,1733134197418,-500.0,7.5e-05,2]
[343953198,1733134197440,-230.614,7.6e-05,2]
[343953199,1733134197465,-2500.0,7.6e-05,2]
[343953200,1733134197489,-264.38,7.6e-05,2]
[343953201,1733134197528,-974.5797,7.6e-05,2]
[343953202,1733134197553,-500.0,7.6e-05,2]
[343953203,1733134197579,-335.13,7.659e-05,2]
[343953204,1733134197604,-500.0,7.661e-05,2]
[343953205,1733134197629,-500.0,7.661e-05,2]
[343953206,1733134197653,-500.0,7.661e-05,2]
[343953207,1733134197682,-500.0,7.661e-05,2]
[343953208,1733134197705,-500.0,7.661e-05,2]
[343953209,1733134197730,-435.5945,7.661e-05,2]
[343953210,1733134197757,-150.0,7.669e-05,2]
[343953211,1733134197781,-795.44,7.67e-05,2]
[343953212,1733134197805,-150.0,7.67e-05,2]
[343953213,1733134197828,-627.79,7.67e-05,2]
[343953214,1733134197850,-434.96,7.67e-05,2]
[343953215,1733134197875,-434.96,7.67e-05,2]
[343953216,1733134197899,-434.96,7.67e-05,2]
[343953217,1733134197932,-301.53,7.67e-05,2]
[343953218,1733134197957,-500.0,7.673e-05,2]
[343953219,1733134197982,-503.64091238,7.673e-05,2]
[343953220,1733134198007,-363.99,7.68e-05,2]
[343953221,1733134198034,-150.0,7.698e-05,2]
[343953222,1733134198060,-150.0,7.698e-05,2]
[343953223,1733134198085,-150.0,7.698e-05,2]
[343953224,1733134198111,-150.0,7.698e-05,2]
[343953225,1733134198136,-150.0,7.698e-05,2]
[343953226,1733134198163,-150.0,7.698e-05,2]
[343953227,1733134198188,-150.0,7.698e-05,2]
[343953228,1733134198213,-150.0,7.698e-05,2]
[343953229,1733134198238,-150.0,7.698e-05,2]
[343953230,1733134198262,-150.0,7.698e-05,2]
[343953231,1733134198287,-150.0,7.698e-05,2]
[343953232,1733134198311,-290.62261269,7.699e-05,2]
[343953233,1733134198336,-195.53763735,7.699e-05,2]
[343953234,1733134198359,-176.89544316,7.699e-05,2]
[343953235,1733134198382,-2713.67,7.699e-05,2]
[343953236,1733134198406,-1588.0,7.7e-05,2]
[343953237,1733134198433,-2582.01459273,7.7e-05,2]
[343953242,1733134210051,-1002.7503,7.57e-05,2]
[343953243,1733134210076,-2500.0,7.6e-05,2]
[343953244,1733134210100,-232.49809015,7.699e-05,2]
[343953245,1733134210124,-1806.0,7.7e-05,2]
[343953246,1733134210151,-947558.75160985,7.7e-05,2]
[343953268,1733134232529,-185.99847212,7.699e-05,2]
[343953269,1733134232538,-769.07152788,7.7e-05,2]
[343953270,1733134232552,-320.0000002,7.7e-05,2]
[343953271,1733134232563,-535.92847192,7.7e-05,2]
[343953272,1733134232573,-65677.27427965,7.7e-05,2]
[343953273,1733134232696,-31875.47999999,7.7e-05,2]
[343953275,1733134232760,-1040.0,7.7e-05,2]
[343953278,1733134232771,-965.72,7.7e-05,2]
[343953280,1733134232782,-1011.7,7.7e-05,2]
[343953282,1733134232793,-1002.961,7.7e-05,2]
[343953290,1733134232856,-1110.52698775,7.7e-05,2]
[343953292,1733134232868,-29537.63357034,7.7e-05,2]
[343953306,1733134238375,-8998.75988141,7.7e-05,2]
[343953307,1733134238456,-476.641005,7.7e-05,2]
[343953308,1733134238769,-150.01,7.699e-05,2]
[343953309,1733134238783,-3122.2251792,7.7e-05,2]
[343953318,1733134240437,-1503.08662651,7.7e-05,2]
[343953319,1733134240452,-697.76103665,7.7e-05,2]
[343953320,1733134240614,-1749.63723835,7.7e-05,2]
[343953323,1733134243342,-1466.0,7.7e-05,2]
[343953325,1733134243353,-4470.64561795,7.7e-05,2]
[343953327,1733134243431,-1000.0,7.7e-05,2]
[343953328,1733134243459,-849.24200198,7.7e-05,2]
[343953329,1733134243472,-7324.16610386,7.7e-05,2]
[343953330,1733134243486,-2197.68854478,7.7e-05,2]
[343953331,1733134243497,-7461.19537106,7.7e-05,2]
[343953332,1733134243526,-20233.31877086,7.7e-05,2]
[343953333,1733134243556,-2319.09986,7.7e-05,2]
[343953334,1733134243568,-19057.2,7.7e-05,2]
[343953335,1733134243646,-93169.43045132,7.7e-05,2]
[343953336,1733134243658,-7168.04668319,7.7e-05,2]
[343953337,1733134243712,-1630.27186228,7.7e-05,2]
[343953338,1733134243724,-4476.05904538,7.7e-05,2]
[343953348,1733134249013,-693.94428011,7.6e-05,2]
[343953349,1733134249026,-251.10534899,7.6e-05,2]
[343953350,1733134249039,-476.855,7.6e-05,2]
[343953351,1733134249290,-2358.4499982,7.6e-05,2]
[343953352,1733134310588,150.0,6.955e-05,2]
[343953353,1733134310609,50.0,6.955e-05,2]
[343953354,1733134320799,150.0,7e-05,2]
[343953355,1733134320820,150.0,7e-05,2]
[343953356,1733134320842,100.0,7e-05,2]
[343953357,1733134322800,150.0,7.1e-05,2]
[343953358,1733134322822,150.0,7.1e-05,2]
[343953359,1733134322845,150.0,7.1e-05,2]
[343953360,1733134322867,150.0,7.1e-05,2]
[343953361,1733134322889,150.0,7.1e-05,2]
[343953362,1733134322912,150.0,7.1e-05,2]
[343953364,1733134344292,150.0,6.878e-05,2]
[343953365,1733134344315,52.06,6.878e-05,2]
[343953366,1733134428756,150.0,6.851e-05,2]
[343953367,1733134428778,150.0,6.851e-05,2]
[343953368,1733134428801,150.0,6.851e-05,2]
[343953369,1733134428824,150.0,6.851e-05,2]
[343953370,1733134428848,150.0,6.851e-05,2]
[343953371,1733134428870,150.0,6.851e-05,2]
[343953372,1733134428892,262.75960701,6.851e-05,2]
[343953373,1733134428921,289.23039299,6.851e-05,2]
[343953374,1733134433012,150.0,6.871e-05,2]
[343953375,1733134433035,150.0,6.871e-05,2]
[343953376,1733134496814,150.0,6.889e-05,2]
[343953377,1733134496835,150.0,6.889e-05,2]
[343953378,1733134496860,693.35,6.889e-05,2]
[343953379,1733134602523,1017.95,7.16e-05,2]
[343953380,1733134610386,770.79,6.885e-05,2]
[343953381,1733134651563,388.79,6.885e-05,2]
[343953382,1733134681859,1500.0,6.887e-05,2]
[343953383,1733134716938,250.0,6.874e-05,2]
[343953384,1733134717685,383.02,6.874e-05,2]
[343953385,1733134745988,729.96,6.874e-05,2]
[343953386,1733134761446,160.64,5.499e-05,2]
[343953387,1733134777458,265.0,6.877e-05,2]
[343953388,1733134780908,1607.74,6.877e-05,2]
[343953389,1733134808257,165.17,6.879e-05,2]
[343953390,1733134810505,-8017.0,0.00012109,29]
[343953391,1733134884801,707.8,6.859e-05,2]
[343953392,1733134978580,2000.0,6.852e-05,2]
[343953393,1733134994592,1705.03,6.852e-05,2]
[343953425,1733135221613,600.0,7e-05,2]
[343953426,1733135223750,1200.0,7.1e-05,2]
[343953427,1733135250603,135556.5732697,1e-06,7]
[343953428,1733135274898,300.0,6.84e-05,2]
[343953429,1733135275610,166.66,7.045e-05,2]
[343953456,1733135337507,1500.0,6.793e-05,2]
[343953463,1733135358490,250.0,6.793e-05,2]
[343953464,1733135390808,160.64,5.434e-05,2]
[343953491,1733135432866,-1598.18386658,7.2e-05,2]
[343953492,1733135433005,-301.81613342,7.2e-05,2]
[343953493,1733135433015,-166.66,7.278e-05,2]
[343953494,1733135433024,-419.33221063,7.3e-05,2]
[343953509,1733135438424,-2080.66778937,7.3e-05,2]
[343953510,1733135438434,-426.73241742,7.4e-05,2]
[343953511,1733135438445,-285.42771562,7.4e-05,2]
[343953512,1733135438904,-2487.83986696,7.4e-05,2]
[343953513,1733135438914,-172.39,7.414e-05,2]
[343953514,1733135438923,-300.0,7.499e-05,2]
[343953515,1733135438932,-600.0,7.5e-05,2]
[343953516,1733135438943,-434.96,7.5e-05,2]
[343953517,1733135438952,-166.66,7.51e-05,2]
[343953518,1733135438961,-150.0,7.599e-05,2]